Cogmind - Beta 12 @@@ ROGUE MODE // 2023.10.19 @ 16:01:46 Player: Figgis Result: Self-destructed Performance ------------- Evolutions (1) 500 Regions Visited (3) 600 Robots Destroyed (23) 115 Value Destroyed (524) 524 Prototype IDs (0) 0 Alien Tech Used (0) 0 Bonus (50) 50 TOTAL SCORE: 1789 Bonus ------- Follower Combat Kills 50 Cogmind --------- Core Integrity 311/400 Matter 292/300 Energy 265/265 System Corruption 0% Temperature Cool (0) Movement Treading (160) Location -9/Materials Parts ------- > --- POWER (1) -------- Improved Ion Engine > --- PROPULSION (2) --- Improved Treads Improved Treads > --- UTILITY (4) ------ Large Storage Unit Hardened Light Armor Plating > --- WEAPON (2) ------- (None) > --- INVENTORY (15) --- Improved Ion Engine Improved Ion Engine Improved Ion Engine Improved Treads Hardened Light Armor Plating Hardened Light Armor Plating Hardened Light Armor Plating Peak State ------------ > --- POWER ------------ Improved Ion Engine > --- PROPULSION ------- Improved Treads Improved Treads > --- UTILITY ---------- Small Storage Unit Hardened Light Armor Plating > --- WEAPON ----------- Assault Rifle Assault Rifle > --- INVENTORY -------- Improved Ion Engine Improved Ion Engine Improved Ion Engine Hardened Light Armor Plating Hardened Light Armor Plating Hardened Light Armor Plating [Rating: 12] Favorites ----------- Power Improved Ion Engine Engine Improved Ion Engine Propulsion Improved Treads Treads Improved Treads Utility Hardened Light Armor Plating Storage Large Storage Unit Protection Hardened Light Armor Plating Weapon Assault Rifle Energy Gun Small Laser Ballistic Gun Assault Rifle Build | -11 -10 -10 -9 ------- Run | Jun Mat Min Mat Slots Evolved 2 | . . . 2 Power . | . . . . Propulsion . | . . . . Utility 2 | . . . 2 Weapon . | . . . . Parts Attached 18 | 3 14 . 1 Power 2 | . 2 . . Engine 2 | . 2 . . Core . | . . . . Reactor . | . . . . Propulsion 6 | 2 3 . 1 Treads 6 | 2 3 . 1 Leg . | . . . . Wheel . | . . . . Hover . | . . . . Flight . | . . . . Utility 4 | . 4 . . Device . | . . . . Storage 2 | . 2 . . Processor . | . . . . Hackware . | . . . . Protection 2 | . 2 . . Artifact . | . . . . Weapon 6 | 1 5 . . Energy Gun 3 | 1 2 . . Energy Cannon . | . . . . Ballistic Gun 3 | . 3 . . Ballistic Cannon . | . . . . Launcher . | . . . . Special Weapon . | . . . . Impact Weapon . | . . . . Slashing Weapon . | . . . . Piercing Weapon . | . . . . Special Melee Weapon . | . . . . Unidentified Prototypes . | . . . . Parts Lost 4 | . 1 . 3 Power . | . . . . Propulsion 1 | . . . 1 Utility . | . . . . Weapon 3 | . 1 . 2 Highest Loss Streak 2 | . 1 . 2 To Critical Strikes . | . . . . Average Slot Usage (%) 93 | . 93 100 70 Engine 13 | . 13 14 11 Treads 27 | . 27 28 22 Storage 13 | . 13 14 11 Protection 10 | . 8 14 11 Energy Gun 1 | . 3 . . Ballistic Gun 24 | . 24 28 15 Naked Turns . | . . . . Heaviest Build 36 | 1 36 36 36 Greatest Support 46 | 3 46 46 46 Greatest Overweight (x) 6 | . 6 . . Average Overweight (x) . | . . . . Largest Inventory Capacity 15 | 5 15 15 15 Average Capacity 11 | 5 8 15 15 Most Carried 9 | 5 9 8 8 Average Carried 7 | 3 7 8 7 Final Capacity 15 | 5 15 15 15 Final Carried 8 | 5 8 8 7 Class Distribution -------------------- 100% | Mutant Dominant Class ---------------- Mutant | -10/Materials Mutant | -10/Mines Mutant | -9/Materials Resources | -11 -10 -10 -9 ----------- Run | Jun Mat Min Mat Matter Collected 730 | 159 420 80 71 Remotely . | . . . . Salvage Created 686 | . 523 52 111 Parts 50 | . 37 2 11 Haulers Intercepted . | . . . . Recyclers Shooed . | . . . . Parts Field Recycled . | . . . . Retrieved Matter . | . . . . Parts Self-Destructed . | . . . . Prevented . | . . . . Kills | -11 -10 -10 -9 ------- Run | Jun Mat Min Mat Combat Hostiles Destroyed 17 | . 12 1 4 Guns 17 | . 12 1 4 Classes Destroyed 4 | . 4 . . Worker 3 | . 2 . 1 Watcher 3 | . 3 . . Swarmer 6 | . 3 . 3 Grunt 11 | . 9 1 1 Best Kill Streak 5 | . 4 1 5 Combat Bots Only 4 | . 3 1 4 Max Kills in Single Turn 1 | . 1 1 1 Gunslinging . | . . . . Exploded . | . . . . Melee . | . . . . Uniques/NPCs Destroyed . | . . . . Combat | -11 -10 -10 -9 -------- Run | Jun Mat Min Mat Damage Taken 1435 | . 825 132 478 Core 216 | . 106 21 89 Absorbed by Shields . | . . . . Regen/Repaired (Parts) 151 | . 151 . . Core Remaining (%) 74 | 100 . 49 . Volleys Fired 71 | . 49 6 16 Largest 2 | . 2 2 2 Hottest 90 | . 90 40 40 Shots Fired 138 | . 98 12 28 Gun 138 | . 98 12 28 Cannon . | . . . . Launcher . | . . . . Special . | . . . . Kinetic 126 | . 86 12 28 Thermal 12 | . 12 . . Explosive . | . . . . Electromagnetic . | . . . . Robot Hit Streak 10 | . 7 10 4 Robot Miss Streak 6 | . 6 1 4 Penetration Max . | . . . . Secondary Targets 1 | . . . 1 Max Gunslinging Chain 1 | . . . 1 Shots Hit Robots 75 | . 51 11 13 Core Hits 41 | . 29 4 8 Critical Kills . | . . . . Critical Parts Destroyed . | . . . . Critical Strikes . | . . . . Melee Attacks . | . . . . Impact . | . . . . Slashing . | . . . . Piercing . | . . . . Sneak Attacks . | . . . . Combat Hostiles . | . . . . Follow-up Attacks . | . . . . Damage Inflicted 1077 | . 744 138 195 Guns 1077 | . 744 138 195 Cannons . | . . . . Explosions . | . . . . Melee . | . . . . Ramming . | . . . . Kinetic 1017 | . 684 138 195 Thermal 60 | . 60 . . Explosive . | . . . . Electromagnetic . | . . . . Impact . | . . . . Slashing . | . . . . Piercing . | . . . . Highest Corruption . | . . . . Average Corruption . | . . . . Corruption Purged . | . . . . Corruption Blocked . | . . . . Overload Shots . | . . . . Overflow Damage . | . . . . Projectiles . | . . . . Explosions . | . . . . Melee . | . . . . Knockbacks . | . . . . Impact . | . . . . Kinetic . | . . . . Secondary . | . . . . Self-Inflicted Damage . | . . . . Shots . | . . . . Rammed . | . . . . Targets Rammed . | . . . . Kicked . | . . . . Crushed . | . . . . Highest Temperature 226 | . 226 64 12 Average Temperature 83 | . 105 40 4 Received Heat Transfer 762 | . 465 75 222 Siege Activations . | . . . . Robots Corrupted . | . . . . Combat Hostiles . | . . . . Parts Fried . | . . . . Impact Corruptions . | . . . . Robots Melted . | . . . . Combat Hostiles . | . . . . Parts Melted . | . . . . Heat Transferred 161 | . 161 . . Parts Sabotaged . | . . . . Parts Stolen . | . . . . Parts Stripped . | . . . . Power Chain Reactions . | . . . . Missiles Intercepted . | . . . . Alert | -11 -10 -10 -9 ------- Run | Jun Mat Min Mat Peak Influence 290 | . 290 79 124 Initial 49 | . . 49 . Average 97 | . 140 42 66 Maximum Alert Level 1 | . 1 . . Low Security (%) 84 | 100 71 100 100 Level 1 15 | . 28 . . Level 2 . | . . . . Level 3 . | . . . . Level 4 . | . . . . Level 5 . | . . . . High Security . | . . . . Max Security . | . . . . Squads Dispatched 4 | . 3 . 1 Investigation 1 | . 1 . . Extermination . | . . . . Reinforcement 3 | . 2 . 1 Assault . | . . . . Garrison . | . . . . Intercept . | . . . . Searches Triggered . | . . . . Construction Impeded . | . . . . Haulers Reinforced . | . . . . Active Scanning Responses . | . . . . Cargo Convoy Interrupts . | . . . . Stealth | -11 -10 -10 -9 --------- Run | Jun Mat Min Mat Distress Signals 2 | . 1 . 1 Communications Jammed . | . . . . Distress Signals . | . . . . Times Spotted 30 | . 17 2 11 Peak Tracking Total 4 | . 4 2 4 Tactical Retreats 1 | . . . 1 Traps | -11 -10 -10 -9 ------- Run | Jun Mat Min Mat Traps Triggered 1 | . 1 . . Indirectly . | . . . . Trap Hack Attempts . | . . . . Triggered . | . . . . Disarmed . | . . . . Reprogrammed . | . . . . Reused . | . . . . Traps Extracted . | . . . . Installed . | . . . . Triggered . | . . . . Machines | -11 -10 -10 -9 ---------- Run | Jun Mat Min Mat Machines Disabled . | . . . . Max in Single Turn . | . . . . Machines Repaired . | . . . . Machines Sabotaged . | . . . . Overloaded Fab Kills . | . . . . Hacking | -11 -10 -10 -9 --------- Run | Jun Mat Min Mat Machines Accessed 6 | . 6 . . Terminals 5 | . 5 . . Fabricators . | . . . . Repair Stations 1 | . 1 . . Recycling Units . | . . . . Scanalyzers . | . . . . Garrison Access . | . . . . Total Hacks 17 | . 17 . . Successful 7 | . 7 . . Failed 9 | . 9 . . Catastrophic . | . . . . Database Lockouts 1 | . 1 . . Manual 5 | . 5 . . Terminals 15 | . 15 . . Fabricators . | . . . . Repair Stations 2 | . 2 . . Recycling Units . | . . . . Scanalyzers . | . . . . Garrison Access . | . . . . Terminal Hacks 5 | . 5 . . Record 1 | . 1 . . Robot Analysis 2 | . 2 . . Dispatch Records 1 | . 1 . . Security Status 1 | . 1 . . Fabricator Hacks . | . . . . Repair Station Hacks 2 | . 2 . . Scan Component 1 | . 1 . . Repair 1 | . 1 . . Recycling Unit Hacks . | . . . . Scanalyzer . | . . . . Garrison Access Hacks . | . . . . Unauthorized Hacks . | . . . . Terminals . | . . . . Fabricators . | . . . . Repair Stations . | . . . . Recycling Units . | . . . . Scanalyzers . | . . . . Garrison Access . | . . . . Data Cores Recovered . | . . . . Used . | . . . . Hacking Detections 6 | . 6 . . Full Trace Events 1 | . 1 . . Feedback Events . | . . . . Feedback Blocked . | . . . . Robot Schematics Acquired . | . . . . Robots Built . | . . . . Authchips . | . . . . Time . | . . . . Total Robot Build Rating . | . . . . Part Schematics Acquired . | . . . . Parts Built . | . . . . Authchips . | . . . . Time . | . . . . Total Part Build Rating . | . . . . Parts Repaired 1 | . 1 . . Time 16 | . 16 . . Parts Recycled . | . . . . Recycled Matter . | . . . . Retrieved Matter . | . . . . Retrieved Components . | . . . . Parts Scanalyzed . | . . . . Part Schematics Acquired . | . . . . Parts Damaged . | . . . . Bothacking | -11 -10 -10 -9 ------------ Run | Jun Mat Min Mat Used RIF Installer . | . . . . Robots Hacked . | . . . . Non-combat . | . . . . Combat . | . . . . Robot Hacks Applied . | . . . . Relay Couplers Released . | . . . . Fabnet Peak Effective % . | . . . . Robots Rewired . | . . . . Allies Hacked . | . . . . Hacks Repelled . | . . . . Allies | -11 -10 -10 -9 -------- Run | Jun Mat Min Mat Total Allies 2 | . . 2 . Largest Group 2 | . . 2 2 Highest-Rated Group 53 | . . 53 53 Highest-Rated Ally 31 | . . 31 31 Total Orders . | . . . . Ally Attacks 9 | . . . 9 Total Damage 85 | . . . 85 Kills 2 | . . . 2 Allies Corrupted . | . . . . Allies Melted . | . . . . Intel | -11 -10 -10 -9 ------- Run | Jun Mat Min Mat Robot Analysis Total 2 | . 2 . . Derelict Logs Recovered 2 | . . 2 . Drone Launches . | . . . . Drone Recoveries . | . . . . Exploration | -11 -10 -10 -9 ------------- Run | Jun Mat Min Mat Turns Passed 1992 | 32 1092 672 196 Spaces Moved 1072 | 42 554 382 94 Core 68 | 42 26 . . Treads 1004 | . 528 382 94 Legs . | . . . . Wheels . | . . . . Hover . | . . . . Flight . | . . . . Fastest Speed 50 | 50 50 160 160 Average Speed 153 | 50 156 160 160 Slowest Speed 350 | 50 350 160 160 Overloaded Moves . | . . . . Propulsion Burnouts . | . . . . Robots Hopped . | . . . . Cave-ins Triggered . | . . . . Exploration Rate (%) 50 | 4 95 91 13 Regions Visited 3 Branch Regions 1 Pre-discovered Areas . | . . . . Known Exits Taken . | . . . . Unknown Exits Taken 3 | 1 1 1 . Scrap Searched 2 | . . 2 . Spaces Dug . | . . . . Terrain Destroyed . | . . . . Melee . | . . . . Projectile . | . . . . AOE . | . . . . Terrain Rammed . | . . . . Walls Destroyed . | . . . . Machines Disabled . | . . . . Actions | -11 -10 -10 -9 --------- Run | Jun Mat Min Mat Total 1277 | 51 684 431 111 Wait 86 | . 42 44 . Move 1069 | 41 553 381 94 Hop . | . . . . Pick Up 21 | 7 14 . . Fast Attach 5 | 1 4 . . Attach 10 | 2 7 . 1 Detach . | . . . . Swap 3 | . 3 . . Drop 12 | . 12 . . Fire 71 | . 49 6 16 Melee . | . . . . Ram . | . . . . Kick . | . . . . Crush . | . . . . Escape Stasis . | . . . . Rewire . | . . . . Trap . | . . . . Miscellaneous . | . . . . Route ------- -11/Junkyard -10/Materials (discovered 5 exits: [*Mat x3] / [*Min x2]) -10/Mines (discovered 2 exits: [*Mat x2]) -9/Materials (discovered 2 exits: Min x2) History --------- Turn | Location | Event 18 | -11/Junkyard | Discovered new exit (range 15) 33 | -11/Junkyard | Entered Materials 280 | -10/Materials | Discovered new exit (range 7) 317 | -10/Materials | Build established: Mutant 356 | -10/Materials | Central database locked down 508 | -10/Materials | Discovered new exit (range 11) 665 | -10/Materials | Discovered new exit (range 13) 737 | -10/Materials | Discovered new exit (range 14) 898 | -10/Materials | Discovered new exit (range 15) 1063 | -10/Materials | Repaired Hrd. Light Armor Plating 1125 | -10/Materials | Entered Mines 1167 | -10/Mines | Met a Derelict bent on vengeance 1212 | -10/Mines | Core integrity fell below 50% 1674 | -10/Mines | Discovered new exit (range 15) 1714 | -10/Mines | Discovered new exit (range 7) 1730 | -10/Mines | Learned Materials security intel 1797 | -10/Mines | Entered Materials 1797 | -9/Materials | Accompanied by 2 allies 1797 | -9/Materials | Evolved 2 slots: Utility x2 1798 | -9/Materials | Identified exit to Mines 1802 | -9/Materials | Led the pair of lost Derelicts to an unsafe place 1993 | -9/Materials | Self-destructed Last Messages --------------- 01891_ Acquired 14 matter. 01891_ K-01 Serf collects debris. 01897_ G-34 Mercenary destroyed. 01897_ Switching to secondary target: G-47 Trooper. 01898_ K-01 Serf collects debris. 01900_ K-01 Serf destroyed. 01901_ K-01 Serf collects debris. 01910_ R-06 Scavenger collects Lgt. Ion Engine. 01914_ Critical hit (Burn: +37). 01914_ R-06 Scavenger collects Lgt. Assault Rifle. 01917_ R-06 Scavenger collects Flight Unit. 01917_ R-06 Scavenger collects Lgt. Ion Engine. 01919_ Assault Rifle destroyed. 01920_ R-06 Scavenger collects Lgt. Assault Rifle. 01923_ R-06 Scavenger collects Flight Unit. 01940_ Electrolysis Chamber disabled. 01950_ Assault Rifle destroyed. 01954_ W-16 Scout sends out distress signal. 01972_ Imp. Treads destroyed. 01975_ Acquired 41 matter. Map ----- +----------------------------------------------------+ | ?????????# ## """ ##%#???????????????? | | ?????????# ## ???# "" ## #???????????????? | | ??????????????##?????# ## #???????????????? | | ?????????????????????#####/##### #???????????????? | | ??????????????? #### %%#???????????????? | | ????????????????? + #???????????????? | | ?????????????????????#### #???????????????? | | ????????????????????????##+### #???????????????? | | ???????????????????????? ## ##??????????????? | | ??????????????????????? # #######+###????? | | ?????????????????????? # ???? | | ???????????????????? + ???? | | ???????????????????# # % ???? | | ???????????????????# # ##+####### ????? | | ???????????????????# ## %%##??????????????? | | ???????????????????# ## #???????????????? | | ???????????????????# ## #???????????????? | | ??????????????????############ #???????????????? | | ??????????????????# ## ##??????????>???? | | ??????????????????# ! """ # #??????????????? | | ??????????????????# """"" #g #??????????????? | | ??????????????????# """"" Y #??????????????? | | ??????????????????# """"" # #??????????????? | | ??????????????????# """ # #??????????????? | | ??????????????????# b ### ###??????????????? | | ??????????????????# @ #?? #????????????????? | | ??????????????????###########?? #????????????????? | | ???????????????????????????????+#????????????????? | | ?????????????????????????????????????????????????? | | ?????????????????????????????????????????????????? | | ?????????????????????????????????????????????????? | | ?????????????????????????????????????????????????? | | ?????????????????????????????????????????????????? | | | | | | | | | | | | | | | | | | | | | | | | | | | | | | | | | | | +----------------------------------------------------+ Best States ------------- Heat Dissipation 28 Energy Generation 12 Energy Capacity 265 Matter Stores 300 Matter Capacity 300 Sight Range 16 Terrain Scan Density 10 Armor Coverage 150 Evasion (%) 50 Recoil Reduction 2 Item Schematics ----------------- None Robot Schematics ------------------ None Fabricated ------------ Nothing Alien Tech Used ----------------- None Achievements -------------- None Challenges ------------ None Game ------ Seed UltimateLauncherLeg Manual? 0 Play Time 00:13:48 Cumulative 73.8 hours Start 2023.10.18 @ 19:12:54 End 2023.10.19 @ 16:01:46 Sessions 3 Manual Loads 0 Difficulty Rogue Special Mode None Game No. 125 Rogue 122 Adventurer 3 Explorer 0 Win Type - Total 0 Types 0/0/0/0/0/0/0/0/0 Lore% 34 Gallery% 51 Achievement% 36 Wizard Run 0 Options --------- ASCII 0 Keyboard 0 Movement Mouse Keybinds 0 Fullscreen 2 Font 18/SmallcapsGlow Map View 76x50 Tactical HUD 1 Map Filters NONE Filters NONE Steam 1 RUN: 72d1e357-3464-42b5-b747-773a7fafd256